[Event "RUS-ch Men Rapid 2019"]
[Site "Sochi"]
[Date "2019.10.15"]
[Round "2.13"]
[White "Chekletsov, Ilya"]
[Black "Savchenko, Boris"]
[Result "1/2-1/2"]
[ECO "E91"]
[WhiteElo "2377"]
[BlackElo "2560"]
[Annotator "ChessBase"]
[PlyCount "109"]
[EventDate "2019.10.15"]
[EventType "swiss"]
[EventCountry "RUS"]
[SourceTitle "playchess.com"]
[Source "ChessBase"]
[SourceQuality "1"]
[TimeControl "900+10"]

1. d4 {[%emt 0:00:00]} Nf6 {[%emt 0:00:01]} 2. c4 {[%emt 0:00:02]} g6 {[%emt 0:00:03]} 3. Nc3 {[%emt 0:00:03]} Bg7 {[%emt 0:00:02]} 4. e4 {[%emt 0:00:02]} d6 {[%emt 0:00:02]} 5. Nf3 {[%emt 0:00:04]} O-O {[%emt 0:00:02]} 6. Be2 {[%emt 0:00:04]} Na6 {[%emt 0:00:02]} 7. O-O {[%emt 0:00:33]} e5 {[%emt 0:00:17]} 8. Be3 {[%emt 0:00:03]} h6 {[%emt 0:00:04]} 9. dxe5 {[%emt 0:01:13]} Ng4 {[%emt 0:00:02]} 10. Bd2 {[%emt 0:00:30]} Nxe5 {[%emt 0:06:21]} 11. Nxe5 {[%emt 0:00:19]} Bxe5 {[%emt 0:00:02]} 12. Qc1 {[%emt 0:04:56]} Kh7 {[%emt 0:02:01]} 13. f4 {[%emt 0:01:03]} Bg7 {[%emt 0:00:08]} 14. f5 {[%emt 0:00:09]} Nc5 {[%emt 0:00:03]} 15. f6 {[%emt 0:00:33]} Bxf6 {[%emt 0:00:03]} 16. Bxh6 {[%emt 0:00:02]} Bd4+ {[%emt 0:01:56]} 17. Kh1 {[%emt 0:00:40]} Bg7 {[%emt 0:00:02]} 18. Bg5 {[%emt 0:00:51]} f6 {[%emt 0:00:25]} 19. Be3 {[%emt 0:00:02]} Nd7 {[%emt 0:01:12]} 20. Qe1 {[%emt 0:01:13]} Ne5 {[%emt 0:00:56]} 21. Qh4+ {[%emt 0:00:02]} Kg8 {[%emt 0:00:02]} 22. c5 {[%emt 0:00:02]} Be6 {[%emt 0:00:24]} 23. Rad1 {[%emt 0:00:30]} Qe7 {[%emt 0:00:49]} 24. Nd5 {[%emt 0:01:01]} Qf7 {[%emt 0:00:17]} 25. Bd4 {[%emt 0:01:01]} Bxd5 {[%emt 0:00:59]} 26. Bxe5 {[%emt 0:00:56]} g5 {[%emt 0:00:19]} 27. Qe1 {[%emt 0:01:05]} Bxe4 {[%emt 0:01:38]} 28. cxd6 {[%emt 0:00:02]} cxd6 {[%emt 0:00:12]} 29. Rxd6 {[%emt 0:01:27]} Rae8 {[%emt 0:00:48]} 30. Bc3 {[%emt 0:00:42]} Qe7 {[%emt 0:00:11]} 31. Bc4+ {[%emt 0:00:05]} Kh8 {[%emt 0:00:02]} 32. Re6 {[%emt 0:00:03]} Qxe6 {[%emt 0:00:05]} 33. Bxe6 {[%emt 0:00:01]} Rxe6 {[%emt 0:00:02]} 34. Qd2 {[%emt 0:00:03]} Rfe8 {[%emt 0:00:10]} 35. Qd1 {[%emt 0:00:32]} Bc6 {[%emt 0:00:18]} 36. Re1 {[%emt 0:00:18]} a6 {[%emt 0:00:15]} 37. Rxe6 {[%emt 0:00:12]} Rxe6 {[%emt 0:00:01]} 38. Kg1 {[%emt 0:00:01]} Kg8 {[%emt 0:00:07]} 39. Kf2 {[%emt 0:00:04]} Bf8 {[%emt 0:00:04]} 40. b4 {[%emt 0:00:10]} Re4 {[%emt 0:00:05]} 41. Qh5 {[%emt 0:00:22]} Be8 {[%emt 0:00:20]} 42. Qd1 {[%emt 0:00:21]} Bc6 {[%emt 0:00:41]} 43. Qh5 {[%emt 0:00:13]} Bg7 {[%emt 0:00:09]} 44. Qg6 {[%emt 0:00:16]} Kf8 {[%emt 0:00:02]} 45. g3 {[%emt 0:00:05]} Re6 {[%emt 0:00:04]} 46. Qf5 {[%emt 0:00:09]} Kf7 {[%emt 0:00:03]} 47. h4 {[%emt 0:00:04]} Be4 {[%emt 0:00:03]} 48. Qc5 {[%emt 0:00:07]} Bf8 {[%emt 0:00:23]} 49. Qc7+ {[%emt 0:00:06]} Be7 {[%emt 0:00:17]} 50. Qc4 {[%emt 0:00:14]} b5 {[%emt 0:00:09]} 51. Qd4 {[%emt 0:00:01]} Bg6 {[%emt 0:00:16]} 52. Qd5 {[%emt 0:00:06]} Be4 {[%emt 0:00:03]} 53. Qd4 {[%emt 0:00:01]} Bg6 {[%emt 0:00:02]} 54. Qd5 {[%emt 0:00:10]} Be4 {[%emt 0:00:01]} 55. Qd4 {[%emt 0:00:01]} 1/2-1/2

[Event "RUS-ch Men Rapid 2019"]
[Site "Sochi"]
[Date "2019.10.15"]
[Round "2.14"]
[White "Nozdrachev, Vladislav"]
[Black "Ozgibcev, Anatoly"]
[Result "1-0"]
[ECO "C55"]
[WhiteElo "2560"]
[BlackElo "2367"]
[Annotator "ChessBase"]
[PlyCount "105"]
[EventDate "2019.10.15"]
[EventType "swiss"]
[EventCountry "RUS"]
[SourceTitle "playchess.com"]
[Source "ChessBase"]
[SourceQuality "1"]
[TimeControl "900+10"]

1. e4 {[%emt 0:00:00]} e5 {[%emt 0:00:04]} 2. Nf3 {[%emt 0:00:00]} Nc6 {[%emt 0:00:01]} 3. Bc4 {[%emt 0:00:00]} Nf6 {[%emt 0:00:17]} 4. d3 {[%emt 0:00:00]} Be7 {[%emt 0:00:08]} 5. O-O {[%emt 0:00:15]} O-O {[%emt 0:00:07]} 6. Re1 {[%emt 0:00:06]} d6 {[%emt 0:00:03]} 7. a4 {[%emt 0:00:02]} Be6 {[%emt 0:00:05]} 8. a5 {[%emt 0:00:43]} a6 {[%emt 0:00:10]} 9. Nc3 {[%emt 0:01:10]} h6 {[%emt 0:01:00]} 10. Nd5 {[%emt 0:01:01]} Bxd5 {[%emt 0:00:31]} 11. exd5 {[%emt 0:00:21]} Nd4 {[%emt 0:00:53]} 12. Nxd4 {[%emt 0:01:08]} exd4 {[%emt 0:00:02]} 13. Qf3 {[%emt 0:00:09]} Nd7 {[%emt 0:02:09]} 14. Qg4 {[%emt 0:00:06]} Ne5 {[%emt 0:01:28]} 15. Qxd4 {[%emt 0:00:05]} Bf6 {[%emt 0:00:02]} 16. Qe4 {[%emt 0:02:13]} Re8 {[%emt 0:00:25]} 17. Bd2 {[%emt 0:00:37]} Qd7 {[%emt 0:02:48]} 18. Bb3 {[%emt 0:00:14]} Ng4 {[%emt 0:00:20]} 19. Ba4 {[%emt 0:01:30]} Rxe4 {[%emt 0:00:36]} 20. Bxd7 {[%emt 0:00:02]} Rxe1+ {[%emt 0:00:09]} 21. Rxe1 {[%emt 0:00:08]} Ne5 {[%emt 0:01:25]} 22. Ba4 {[%emt 0:00:03]} Ng6 {[%emt 0:00:26]} 23. b4 {[%emt 0:00:22]} Kf8 {[%emt 0:00:49]} 24. g3 {[%emt 0:00:13]} Ne7 {[%emt 0:01:00]} 25. Bb3 {[%emt 0:01:11]} Rc8 {[%emt 0:01:35]} 26. c3 {[%emt 0:00:31]} c6 {[%emt 0:01:02]} 27. dxc6 {[%emt 0:00:03]} Rxc6 {[%emt 0:00:01]} 28. d4 {[%emt 0:00:17]} d5 {[%emt 0:01:08]} 29. Kf1 {[%emt 0:00:03]} Bg5 {[%emt 0:00:22]} 30. f4 {[%emt 0:00:13]} Bf6 {[%emt 0:00:02]} 31. Ke2 {[%emt 0:00:11]} h5 {[%emt 0:00:27]} 32. Kd3 {[%emt 0:00:02]} g6 {[%emt 0:00:01]} 33. h3 {[%emt 0:01:10]} Rd6 {[%emt 0:00:07]} 34. g4 {[%emt 0:00:02]} hxg4 {[%emt 0:00:20]} 35. hxg4 {[%emt 0:00:02]} Rd8 {[%emt 0:00:08]} 36. Bc1 {[%emt 0:00:13]} Nc6 {[%emt 0:00:11]} 37. Rf1 {[%emt 0:00:50]} Kg8 {[%emt 0:00:18]} 38. f5 {[%emt 0:00:20]} g5 {[%emt 0:00:23]} 39. Rh1 {[%emt 0:00:03]} Kf8 {[%emt 0:00:09]} 40. Rh5 {[%emt 0:00:12]} Ke7 {[%emt 0:00:04]} 41. Bxg5 {[%emt 0:00:07]} Rg8 {[%emt 0:00:11]} 42. Bxf6+ {[%emt 0:00:06]} Kxf6 {[%emt 0:00:01]} 43. Bxd5 {[%emt 0:00:19]} Rxg4 {[%emt 0:00:02]} 44. Bxc6 {[%emt 0:00:09]} bxc6 {[%emt 0:00:04]} 45. Rh6+ {[%emt 0:00:01]} Kxf5 {[%emt 0:00:00]} 46. Rxc6 {[%emt 0:00:01]} Kg5 {[%emt 0:00:14]} 47. Rxa6 {[%emt 0:00:06]} f5 {[%emt 0:00:01]} 48. Rc6 {[%emt 0:00:30]} Rg1 {[%emt 0:00:08]} 49. a6 {[%emt 0:00:06]} Ra1 {[%emt 0:00:06]} 50. b5 {[%emt 0:00:02]} Rd1+ {[%emt 0:00:18]} 51. Ke2 {[%emt 0:00:07]} Ra1 {[%emt 0:00:01]} 52. Rc8 {[%emt 0:00:02]} f4 {[%emt 0:00:04]} 53. b6 {[%emt 0:00:08]} 1-0

[Event "RUS-ch Men Rapid 2019"]
[Site "Sochi"]
[Date "2019.10.15"]
[Round "2.15"]
[White "Shubin, Kirill"]
[Black "Pridorozhni, Aleksei"]
[Result "0-1"]
[ECO "B40"]
[WhiteElo "2416"]
[BlackElo "2554"]
[Annotator "ChessBase"]
[PlyCount "84"]
[EventDate "2019.10.15"]
[EventType "swiss"]
[EventCountry "RUS"]
[SourceTitle "playchess.com"]
[Source "ChessBase"]
[SourceQuality "1"]
[TimeControl "900+10"]

1. e4 {[%emt 0:00:00]} c5 {[%emt 0:00:00]} 2. Nf3 {[%emt 0:00:00]} e6 {[%emt 0:00:00]} 3. g3 {[%emt 0:00:00]} d5 {[%emt 0:00:00]} 4. exd5 {[%emt 0:00:00]} exd5 {[%emt 0:00:01]} 5. d4 {[%emt 0:00:00]} Nc6 {[%emt 0:00:06]} 6. Bg2 {[%emt 0:00:01]} Bg4 {[%emt 0:00:38]} 7. O-O {[%emt 0:00:02]} Nxd4 {[%emt 0:00:18]} 8. Qe1+ {[%emt 0:00:02]} Be6 {[%emt 0:00:06]} 9. Nxd4 {[%emt 0:00:12]} cxd4 {[%emt 0:00:01]} 10. Nd2 {[%emt 0:00:10]} Ne7 {[%emt 0:00:11]} 11. Nb3 {[%emt 0:01:08]} Nc6 {[%emt 0:00:05]} 12. f4 {[%emt 0:01:10]} g6 {[%emt 0:01:42]} 13. g4 {[%emt 0:00:22]} Qe7 {[%emt 0:02:09]} 14. Qg3 {[%emt 0:03:16]} f5 {[%emt 0:00:42]} 15. Re1 {[%emt 0:01:18]} O-O-O {[%emt 0:00:05]} 16. Bd2 {[%emt 0:00:23]} fxg4 {[%emt 0:01:42]} 17. c3 {[%emt 0:00:55]} Qd7 {[%emt 0:00:06]} 18. Nxd4 {[%emt 0:00:34]} Nxd4 {[%emt 0:01:19]} 19. cxd4 {[%emt 0:00:06]} Bd6 {[%emt 0:01:19]} 20. a4 {[%emt 0:01:38]} Kb8 {[%emt 0:00:54]} 21. a5 {[%emt 0:00:02]} a6 {[%emt 0:00:03]} 22. b4 {[%emt 0:00:03]} Bf5 {[%emt 0:00:29]} 23. Bf1 {[%emt 0:00:49]} Rhe8 {[%emt 0:00:18]} 24. b5 {[%emt 0:00:10]} Rxe1 {[%emt 0:00:05]} 25. Rxe1 {[%emt 0:01:29]} axb5 {[%emt 0:00:06]} 26. Qb3 {[%emt 0:00:04]} Qg7 {[%emt 0:01:10]} 27. Qxb5 {[%emt 0:00:51]} Qxd4+ {[%emt 0:00:11]} 28. Be3 {[%emt 0:00:04]} Qb4 {[%emt 0:00:02]} 29. a6 {[%emt 0:00:49]} d4 {[%emt 0:01:17]} 30. Bd2 {[%emt 0:01:03]} Qxb5 {[%emt 0:00:05]} 31. Bxb5 {[%emt 0:00:01]} bxa6 {[%emt 0:00:39]} 32. Bxa6 {[%emt 0:00:01]} Bc5 {[%emt 0:00:31]} 33. Rc1 {[%emt 0:00:53]} Bb6 {[%emt 0:00:12]} 34. Rc6 {[%emt 0:01:05]} Ka7 {[%emt 0:00:02]} 35. Bc4 {[%emt 0:00:05]} Rc8 {[%emt 0:00:10]} 36. Rxc8 {[%emt 0:00:02]} Bxc8 {[%emt 0:00:01]} 37. Kg2 {[%emt 0:00:12]} Bf5 {[%emt 0:00:02]} 38. Kg3 {[%emt 0:00:13]} h5 {[%emt 0:00:02]} 39. Bb4 {[%emt 0:00:15]} Kb7 {[%emt 0:00:03]} 40. Be7 {[%emt 0:00:17]} Kc6 {[%emt 0:00:05]} 41. Kh4 {[%emt 0:00:01]} d3 {[%emt 0:00:09]} 42. Kg5 {[%emt 0:00:07]} Bg1 {[%emt 0:00:42]} 0-1

[Event "RUS-ch Men Rapid 2019"]
[Site "Sochi"]
[Date "2019.10.15"]
[Round "2.16"]
[White "Usmanov, Ilnur"]
[Black "Rozum, Ivan"]
[Result "1/2-1/2"]
[ECO "A46"]
[WhiteElo "2144"]
[BlackElo "2551"]
[Annotator "ChessBase"]
[PlyCount "158"]
[EventDate "2019.10.15"]
[EventType "swiss"]
[EventCountry "RUS"]
[SourceTitle "playchess.com"]
[Source "ChessBase"]
[SourceQuality "1"]
[TimeControl "900+10"]

1. d4 Nf6 2. Bg5 e6 3. Nf3 h6 4. Bxf6 Qxf6 5. e4 d6 6. e5 dxe5 7. dxe5 Qe7 8. Nc3 Bd7 9. Bd3 Nc6 10. O-O g5 11. Qe2 Bg7 12. h3 O-O-O 13. Qe3 h5 14. Qxg5 Qxg5 15. Nxg5 Nxe5 16. Bb5 Bxb5 17. Nxb5 a6 18. Na3 Rd7 19. f4 Ng6 20. c3 Nh4 21. Rad1 Rhd8 22. Rxd7 Rxd7 23. Nc4 Nf5 24. g4 hxg4 25. hxg4 Nh6 26. f5 exf5 27. gxf5 Rd5 28. Ne3 Re5 29. Rf3 Bf6 30. Nh3 Rb5 31. Rf2 Bh4 32. Rf4 Bg3 33. Rf3 Bh4 34. Rf4 Be1 35. Rf1 Bg3 36. Rf3 Bd6 37. b4 Re5 38. Nf2 b5 39. Kf1 Kd8 40. Nfg4 Nxg4 41. Nxg4 Re4 42. Nf2 Rc4 43. Ke2 Be5 44. Kd2 Ke7 45. Nd1 Kf6 46. Ne3 Bf4 47. Kd3 Bxe3 48. Rxe3 Kxf5 49. a4 Rc6 50. Rf3+ Ke6 51. Re3+ Kd7 52. axb5 axb5 53. Re5 Rd6+ 54. Kc2 c6 55. c4 bxc4 56. Kc3 Rd5 57. Re1 f5 58. Kxc4 f4 59. Rf1 Rf5 60. Kd4 Ke6 61. Ke4 Re5+ 62. Kf3 Rb5 63. Rc1 Kd5 64. Rd1+ Ke6 65. Rc1 Kd6 66. Rd1+ Rd5 67. Rb1 Rf5 68. Ke4 Rf8 69. b5 c5 70. b6 f3 71. b7 f2 72. Ke3 Kc7 73. b8=Q+ Rxb8 74. Rc1 Rf8 75. Ke2 Kc6 76. Rf1 Kb5 77. Kd3 c4+ 78. Kc3 Kc5 79. Rxf2 Rxf2 1/2-1/2

[Event "RUS-ch Men Rapid 2019"]
[Site "Sochi"]
[Date "2019.10.15"]
[Round "2.17"]
[White "Morozevich, Alexander"]
[Black "Chos, Alexey"]
[Result "1-0"]
[ECO "A05"]
[WhiteElo "2550"]
[BlackElo "2296"]
[Annotator "ChessBase"]
[PlyCount "72"]
[EventDate "2019.10.15"]
[EventType "swiss"]
[EventCountry "RUS"]
[SourceTitle "playchess.com"]
[Source "ChessBase"]
[SourceQuality "1"]
[TimeControl "900+10"]

1. Nf3 {[%emt 0:00:00]} Nf6 {[%emt 0:00:00]} 2. g3 {[%emt 0:00:04]} g6 {[%emt 0:00:03]} 3. c4 {[%emt 0:00:01]} Bg7 {[%emt 0:00:02]} 4. Nc3 {[%emt 0:00:01]} O-O {[%emt 0:00:02]} 5. Bg2 {[%emt 0:00:01]} d6 {[%emt 0:00:08]} 6. O-O {[%emt 0:00:07]} Nbd7 {[%emt 0:00:18]} 7. Rb1 {[%emt 0:00:28]} a5 {[%emt 0:00:43]} 8. b3 {[%emt 0:01:25]} e5 {[%emt 0:00:15]} 9. Ba3 {[%emt 0:00:03]} Re8 {[%emt 0:00:10]} 10. Rc1 {[%emt 0:01:59]} Nc5 {[%emt 0:00:45]} 11. d4 {[%emt 0:01:15]} exd4 {[%emt 0:00:06]} 12. Nxd4 {[%emt 0:00:01]} Nfe4 {[%emt 0:00:37]} 13. Nxe4 {[%emt 0:00:26]} Nxe4 14. e3 {[%emt 0:00:18]} c6 {[%emt 0:00:51]} 15. Qc2 {[%emt 0:00:06]} Nc5 {[%emt 0:00:03]} 16. Rcd1 {[%emt 0:01:20]} Qc7 {[%emt 0:00:47]} 17. Rd2 {[%emt 0:00:15]} Bd7 {[%emt 0:01:15]} 18. Rfd1 {[%emt 0:00:18]} Rad8 {[%emt 0:00:02]} 19. h3 {[%emt 0:00:11]} Bc8 {[%emt 0:00:21]} 20. Bb2 {[%emt 0:00:31]} f5 {[%emt 0:01:01]} 21. Ne2 {[%emt 0:00:44]} Ne4 {[%emt 0:01:14]} 22. Bxg7 {[%emt 0:00:09]} Qxg7 {[%emt 0:00:51]} 23. Rd4 {[%emt 0:00:37]} Qe5 {[%emt 0:00:49]} 24. h4 {[%emt 0:01:26]} Kf7 {[%emt 0:02:03]} 25. Nf4 {[%emt 0:00:17]} Kf6 {[%emt 0:01:57]} 26. R1d3 {[%emt 0:02:49]} Nc5 {[%emt 0:00:21]} 27. Rd2 {[%emt 0:00:02]} Ke7 {[%emt 0:00:17]} 28. Nd3 {[%emt 0:00:54]} Nxd3 {[%emt 0:00:06]} 29. Qxd3 {[%emt 0:00:09]} Be6 {[%emt 0:00:43]} 30. f4 {[%emt 0:00:22]} Qc5 {[%emt 0:00:12]} 31. Kh2 {[%emt 0:00:03]} Bc8 {[%emt 0:00:34]} 32. Qc3 {[%emt 0:01:44]} Kf7 {[%emt 0:00:12]} 33. a3 {[%emt 0:00:09]} Qxa3 {[%emt 0:00:12]} 34. c5 {[%emt 0:00:00]} Be6 {[%emt 0:00:19]} 35. cxd6 {[%emt 0:00:23]} Qxb3 {[%emt 0:00:22]} 36. Qxa5 {[%emt 0:00:07]} Rd7 {[%emt 0:00:16]} 1-0

[Event "RUS-ch Men Rapid 2019"]
[Site "Sochi"]
[Date "2019.10.15"]
[Round "2.18"]
[White "Nechaev, Oleg"]
[Black "Khismatullin, Denis"]
[Result "0-1"]
[ECO "A20"]
[WhiteElo "2371"]
[BlackElo "2550"]
[Annotator "ChessBase"]
[PlyCount "116"]
[EventDate "2019.10.15"]
[EventType "swiss"]
[EventCountry "RUS"]
[SourceTitle "playchess.com"]
[Source "ChessBase"]
[SourceQuality "1"]
[TimeControl "900+10"]

1. c4 {[%emt 0:00:06]} e5 {[%emt 0:00:00]} 2. g3 {[%emt 0:00:02]} Nc6 {[%emt 0:00:47]} 3. Bg2 {[%emt 0:00:03]} Bc5 {[%emt 0:00:01]} 4. Nc3 {[%emt 0:00:01]} d6 {[%emt 0:00:07]} 5. e3 {[%emt 0:00:02]} a6 {[%emt 0:00:04]} 6. Nge2 {[%emt 0:00:02]} Ba7 {[%emt 0:00:01]} 7. b3 {[%emt 0:00:07]} h5 {[%emt 0:00:09]} 8. h3 {[%emt 0:00:09]} h4 {[%emt 0:01:35]} 9. g4 {[%emt 0:00:02]} f5 {[%emt 0:00:01]} 10. gxf5 {[%emt 0:00:02]} Bxf5 {[%emt 0:00:01]} 11. d3 {[%emt 0:00:03]} Nf6 {[%emt 0:00:49]} 12. a3 {[%emt 0:00:12]} Qd7 {[%emt 0:00:24]} 13. Bb2 {[%emt 0:00:03]} g5 {[%emt 0:01:21]} 14. Qd2 {[%emt 0:02:22]} g4 {[%emt 0:01:01]} 15. hxg4 {[%emt 0:00:02]} Bxg4 {[%emt 0:00:02]} 16. Ne4 {[%emt 0:00:04]} Nxe4 {[%emt 0:00:23]} 17. Bxe4 {[%emt 0:00:03]} O-O-O {[%emt 0:00:20]} 18. O-O-O {[%emt 0:00:51]} Rdf8 {[%emt 0:00:32]} 19. Rh2 {[%emt 0:01:49]} Bf3 {[%emt 0:02:28]} 20. Bxf3 {[%emt 0:00:53]} Rxf3 {[%emt 0:00:05]} 21. Rdh1 {[%emt 0:00:03]} Qf7 {[%emt 0:02:24]} 22. Nc3 {[%emt 0:01:59]} h3 {[%emt 0:01:40]} 23. Ne4 {[%emt 0:00:03]} Qf5 {[%emt 0:00:11]} 24. b4 {[%emt 0:00:02]} Ne7 {[%emt 0:00:41]} 25. Kb1 {[%emt 0:01:00]} d5 {[%emt 0:00:18]} 26. Ng3 {[%emt 0:01:48]} Qe6 {[%emt 0:00:29]} 27. cxd5 {[%emt 0:01:29]} Nxd5 {[%emt 0:00:13]} 28. Ne4 {[%emt 0:00:07]} Rg8 {[%emt 0:01:40]} 29. Qd1 {[%emt 0:00:23]} Qf5 {[%emt 0:00:10]} 30. Qc2 {[%emt 0:00:18]} Kb8 {[%emt 0:00:08]} 31. Qc4 {[%emt 0:01:33]} Rd8 {[%emt 0:00:11]} 32. Ng3 {[%emt 0:00:59]} Qg6 {[%emt 0:00:14]} 33. Ne4 {[%emt 0:00:08]} Qh5 {[%emt 0:00:55]} 34. Ng3 {[%emt 0:00:16]} Qe8 {[%emt 0:00:09]} 35. Ne4 {[%emt 0:00:06]} Nb6 {[%emt 0:00:42]} 36. Qc2 {[%emt 0:00:10]} Qh5 {[%emt 0:00:12]} 37. Ng3 {[%emt 0:00:50]} Qf7 {[%emt 0:00:18]} 38. Bxe5 {[%emt 0:00:23]} Nd5 {[%emt 0:00:07]} 39. Ne4 {[%emt 0:00:13]} Bxe3 {[%emt 0:00:19]} 40. fxe3 {[%emt 0:00:15]} Nxe3 {[%emt 0:00:03]} 41. Qxc7+ {[%emt 0:01:27]} Qxc7 {[%emt 0:00:01]} 42. Bxc7+ {[%emt 0:00:02]} Kxc7 {[%emt 0:00:01]} 43. Rxh3 {[%emt 0:00:01]} Rxh3 {[%emt 0:00:02]} 44. Rxh3 {[%emt 0:00:01]} Rxd3 {[%emt 0:00:01]} 45. Rh7+ {[%emt 0:00:11]} Kc6 {[%emt 0:00:06]} 46. Ka2 {[%emt 0:00:35]} Nc4 {[%emt 0:00:21]} 47. Rh6+ {[%emt 0:00:28]} Kd5 {[%emt 0:00:08]} 48. Nf6+ {[%emt 0:00:40]} Ke5 {[%emt 0:00:06]} 49. Ng4+ {[%emt 0:00:24]} Kd4 {[%emt 0:00:06]} 50. b5 {[%emt 0:00:14]} Rxa3+ {[%emt 0:00:12]} 51. Kb1 {[%emt 0:00:00]} Rb3+ {[%emt 0:00:04]} 52. Kc2 {[%emt 0:00:01]} Rb2+ {[%emt 0:00:03]} 53. Kc1 {[%emt 0:00:01]} Rxb5 {[%emt 0:00:03]} 54. Rh4 {[%emt 0:00:07]} Kc3 {[%emt 0:00:28]} 55. Rh3+ {[%emt 0:00:14]} Kb4 {[%emt 0:00:01]} 56. Rh4 {[%emt 0:00:02]} Rc5 {[%emt 0:00:17]} 57. Ne3 {[%emt 0:00:04]} Kb3 {[%emt 0:00:08]} 58. Nc2 {[%emt 0:00:01]} Ne3 {[%emt 0:00:52]} 0-1

[Event "RUS-ch Men Rapid 2019"]
[Site "Sochi"]
[Date "2019.10.15"]
[Round "2.19"]
[White "Papin, Vasily"]
[Black "Mikhailovsky, Vladimir"]
[Result "1-0"]
[ECO "E62"]
[WhiteElo "2541"]
[BlackElo "2209"]
[Annotator "ChessBase"]
[PlyCount "103"]
[EventDate "2019.10.15"]
[EventType "swiss"]
[EventCountry "RUS"]
[SourceTitle "playchess.com"]
[Source "ChessBase"]
[SourceQuality "1"]
[TimeControl "900+10"]

1. d4 {[%emt 0:00:00]} Nf6 {[%emt 0:00:00]} 2. c4 {[%emt 0:00:00]} d6 {[%emt 0:00:10]} 3. Nc3 {[%emt 0:00:13]} Nc6 {[%emt 0:00:20]} 4. Nf3 {[%emt 0:00:44]} g6 {[%emt 0:00:14]} 5. g3 {[%emt 0:00:15]} Bg7 {[%emt 0:00:06]} 6. Bg2 {[%emt 0:00:02]} O-O {[%emt 0:00:11]} 7. O-O {[%emt 0:00:03]} Bf5 {[%emt 0:04:18]} 8. b3 {[%emt 0:00:27]} Ne4 {[%emt 0:01:03]} 9. Nd5 {[%emt 0:00:51]} Qd7 {[%emt 0:02:44]} 10. Bb2 {[%emt 0:00:30]} Nf6 {[%emt 0:00:45]} 11. Re1 {[%emt 0:01:08]} Rfe8 {[%emt 0:02:30]} 12. Ne3 {[%emt 0:00:46]} Be4 {[%emt 0:01:00]} 13. Bf1 {[%emt 0:01:08]} Bxf3 {[%emt 0:00:50]} 14. exf3 {[%emt 0:00:01]} e5 {[%emt 0:00:02]} 15. d5 {[%emt 0:02:48]} Ne7 {[%emt 0:01:42]} 16. Qc2 {[%emt 0:00:38]} a5 {[%emt 0:00:22]} 17. a3 {[%emt 0:00:52]} h5 {[%emt 0:00:33]} 18. Rad1 {[%emt 0:00:31]} b6 {[%emt 0:00:17]} 19. h4 {[%emt 0:01:03]} Nh7 {[%emt 0:00:34]} 20. Kh2 {[%emt 0:00:13]} f5 {[%emt 0:00:09]} 21. Bh3 {[%emt 0:00:07]} Rf8 {[%emt 0:00:02]} 22. Re2 {[%emt 0:01:19]} g5 {[%emt 0:00:01]} 23. Rde1 {[%emt 0:04:13]} g4 {[%emt 0:00:04]} 24. fxg4 {[%emt 0:00:01]} hxg4 {[%emt 0:00:02]} 25. Bg2 {[%emt 0:00:19]} f4 {[%emt 0:00:14]} 26. Be4 {[%emt 0:00:05]} Nf6 {[%emt 0:00:26]} 27. Nf1 {[%emt 0:00:01]} Nxe4 {[%emt 0:00:12]} 28. Qxe4 {[%emt 0:00:06]} Rf7 {[%emt 0:00:12]} 29. Bc1 {[%emt 0:00:04]} Nf5 {[%emt 0:00:16]} 30. Bb2 {[%emt 0:00:13]} Raf8 {[%emt 0:00:02]} 31. Kg1 {[%emt 0:00:19]} Qd8 {[%emt 0:00:13]} 32. b4 {[%emt 0:00:28]} axb4 {[%emt 0:00:03]} 33. axb4 {[%emt 0:00:00]} Qf6 {[%emt 0:00:22]} 34. Rc2 {[%emt 0:00:16]} Qh6 {[%emt 0:00:20]} 35. c5 {[%emt 0:00:15]} bxc5 {[%emt 0:00:01]} 36. bxc5 {[%emt 0:00:01]} Qh5 {[%emt 0:00:22]} 37. cxd6 {[%emt 0:00:15]} cxd6 {[%emt 0:00:01]} 38. Rec1 {[%emt 0:00:24]} Bh6 {[%emt 0:00:08]} 39. Re1 {[%emt 0:00:13]} f3 {[%emt 0:00:04]} 40. Rc4 {[%emt 0:00:25]} Rg7 {[%emt 0:00:02]} 41. Qd3 {[%emt 0:00:08]} Nxh4 {[%emt 0:00:25]} 42. gxh4 {[%emt 0:00:13]} Qxh4 {[%emt 0:00:02]} 43. Ng3 {[%emt 0:00:11]} Bf4 {[%emt 0:00:02]} 44. Rxf4 {[%emt 0:00:17]} exf4 {[%emt 0:00:03]} 45. Nf5 {[%emt 0:00:10]} Qh3 {[%emt 0:00:06]} 46. Ne7+ {[%emt 0:00:04]} Kh8 {[%emt 0:00:29]} 47. Ng6+ {[%emt 0:00:13]} Kg8 {[%emt 0:00:04]} 48. Ne7+ {[%emt 0:00:01]} Kh8 {[%emt 0:00:00]} 49. Qf1 {[%emt 0:00:17]} Qh4 {[%emt 0:00:06]} 50. Ng6+ {[%emt 0:00:06]} Kg8 {[%emt 0:00:11]} 51. Nxh4 g3 52. Bxg7 {[%emt 0:00:04]} 1-0

[Event "RUS-ch Men Rapid 2019"]
[Site "Sochi"]
[Date "2019.10.15"]
[Round "2.20"]
[White "Drygalov, Andrey"]
[Black "Papenin, Nikolai"]
[Result "1-0"]
[ECO "B90"]
[WhiteElo "2538"]
[BlackElo "2295"]
[Annotator "ChessBase"]
[PlyCount "75"]
[EventDate "2019.10.15"]
[EventType "swiss"]
[EventCountry "RUS"]
[SourceTitle "playchess.com"]
[Source "ChessBase"]
[SourceQuality "1"]
[TimeControl "900+10"]

1. e4 {[%emt 0:00:00]} c5 {[%emt 0:00:00]} 2. Nf3 {[%emt 0:00:00]} d6 {[%emt 0:00:00]} 3. d4 {[%emt 0:00:00]} cxd4 {[%emt 0:00:00]} 4. Nxd4 {[%emt 0:00:00]} Nf6 {[%emt 0:00:00]} 5. Nc3 {[%emt 0:00:00]} a6 {[%emt 0:00:00]} 6. Be3 {[%emt 0:00:00]} e5 {[%emt 0:00:01]} 7. Nb3 {[%emt 0:00:00]} Be7 {[%emt 0:00:03]} 8. f3 {[%emt 0:00:07]} Be6 {[%emt 0:00:01]} 9. Qd2 {[%emt 0:00:01]} O-O {[%emt 0:00:02]} 10. O-O-O {[%emt 0:00:03]} Nbd7 {[%emt 0:00:40]} 11. g4 {[%emt 0:00:01]} b5 {[%emt 0:00:11]} 12. g5 {[%emt 0:00:12]} b4 {[%emt 0:00:21]} 13. Ne2 {[%emt 0:00:14]} Ne8 {[%emt 0:00:23]} 14. f4 {[%emt 0:00:02]} a5 {[%emt 0:00:10]} 15. f5 {[%emt 0:00:44]} a4 {[%emt 0:00:09]} 16. fxe6 {[%emt 0:00:28]} axb3 {[%emt 0:00:15]} 17. cxb3 {[%emt 0:00:34]} fxe6 {[%emt 0:01:52]} 18. Kb1 {[%emt 0:00:24]} Rxa2 {[%emt 0:02:04]} 19. Kxa2 {[%emt 0:03:02]} Qa8+ {[%emt 0:00:02]} 20. Kb1 {[%emt 0:00:01]} Qxe4+ {[%emt 0:00:01]} 21. Qd3 {[%emt 0:00:38]} Qxh1 {[%emt 0:00:44]} 22. Bh3 {[%emt 0:00:01]} Qb7 {[%emt 0:01:21]} 23. Bxe6+ {[%emt 0:00:02]} Kh8 {[%emt 0:00:00]} 24. g6 {[%emt 0:04:09]} Nef6 {[%emt 0:00:35]} 25. Ng3 {[%emt 0:01:23]} e4 {[%emt 0:02:46]} 26. Qe2 {[%emt 0:00:43]} Ne5 {[%emt 0:00:11]} 27. gxh7 {[%emt 0:00:30]} Ra8 {[%emt 0:00:26]} 28. Nf5 {[%emt 0:00:20]} Bf8 {[%emt 0:03:05]} 29. Bd4 {[%emt 0:03:41]} Re8 {[%emt 0:02:33]} 30. Bxe5 {[%emt 0:00:49]} Rxe6 {[%emt 0:00:11]} 31. Bxd6 {[%emt 0:00:16]} e3 {[%emt 0:00:19]} 32. Bxf8 {[%emt 0:00:22]} Qe4+ {[%emt 0:00:01]} 33. Qc2 {[%emt 0:00:17]} e2 {[%emt 0:00:15]} 34. Re1 {[%emt 0:00:01]} Nh5 {[%emt 0:00:40]} 35. Qxe4 {[%emt 0:00:23]} Rxe4 {[%emt 0:00:01]} 36. Bd6 {[%emt 0:00:24]} g6 {[%emt 0:00:04]} 37. Ng3 {[%emt 0:00:01]} Rd4 {[%emt 0:00:09]} 38. Be5+ 1-0